[Event "HUN-chT Youth-Children 2018"]
[Site "Zalakaros"]
[Date "2018.07.28"]
[Round "5"]
[White "Megyaszai, Balazs"]
[Black "Koteljarto, Aron"]
[Result "1-0"]
[ECO "B13"]
[WhiteElo "1710"]
[BlackElo "1404"]
[Annotator "NA RC"]
[PlyCount "107"]
[EventDate "2018.07.26"]
[EventType "team-tourn"]
[EventCountry "HUN"]
[SourceTitle "playchess.com"]
[Source "ChessBase"]
[SourceQuality "1"]
[TimeControl "5400+30"]

1. e4 {[%emt 0:00:00]} c6 {[%emt 0:00:05]} 2. d4 {[%emt 0:00:33]} d5 {[%emt 0:00:12]} 3. exd5 {[%emt 0:00:44]} cxd5 {[%emt 0:00:12]} 4. Bd3 {[%emt 0:00:52]} Nf6 {[%emt 0:00:08]} 5. Nf3 {[%emt 0:01:20]} Nc6 {[%emt 0:00:08]} 6. c3 {[%emt 0:01:03]} g6 {[%emt 0:00:07]} 7. O-O {[%emt 0:00:49]} Bg7 {[%emt 0:00:05]} 8. h3 {[%emt 0:00:48]} O-O {[%emt 0:00:09]} 9. Bf4 {[%emt 0:01:19]} Bd7 {[%emt 0:00:52]} 10. Nbd2 {[%emt 0:01:16]} Rc8 {[%emt 0:00:58]} 11. Re1 {[%emt 0:01:42]} e6 {[%emt 0:13:39]} 12. Bh2 {[%emt 0:09:08]} a6 {[%emt 0:20:38]} 13. Ne5 {[%emt 0:03:01]} Na5 {[%emt 0:15:26]} 14. Ndf3 {[%emt 0:03:17]} Nc4 {[%emt 0:04:49]} 15. Bxc4 {[%emt 0:04:54]} dxc4 {[%emt 0:01:24]} 16. Nxd7 {[%emt 0:00:43]} Nxd7 {[%emt 0:11:36]} 17. Qe2 {[%emt 0:04:54]} Qa5 {[%emt 0:05:07]} 18. a3 {[%emt 0:08:22]} Qd5 {[%emt 0:04:17]} 19. Rad1 {[%emt 0:03:08]} b5 {[%emt 0:03:37]} 20. Ne5 {[%emt 0:07:13]} Nf6 {[%emt 0:00:39]} 21. Ng4 {[%emt 0:03:44]} Rfd8 {[%emt 0:02:21]} 22. Bg3 {[%emt 0:05:10]} Nxg4 {[%emt 0:03:39]} 23. Qxg4 {[%emt 0:01:39]} Re8 {[%emt 0:01:53]} 24. Be5 Red8 {[%emt 0:01:14]} 25. Bxg7 {[%emt 0:11:21]} Kxg7 {[%emt 0:00:13]} 26. Re5 {[%emt 0:00:48]} Qc6 {[%emt 0:00:29]} 27. f4 {[%emt 0:01:15]} Rd5 {[%emt 0:03:08]} 28. Rde1 {[%emt 0:00:43]} Rcd8 {[%emt 0:00:27]} 29. Kh2 {[%emt 0:02:11]} Rxe5 {[%emt 0:02:46]} 30. fxe5 {[%emt 0:00:21]} Re8 {[%emt 0:01:10]} 31. Qh4 {[%emt 0:01:44]} Qd7 {[%emt 0:00:29]} 32. Rf1 {[%emt 0:00:45]} Qd8 {[%emt 0:01:09]} 33. Rf6 {[%emt 0:00:27]} Qe7 {[%emt 0:00:37]} 34. g4 {[%emt 0:01:19]} Qf8 {[%emt 0:01:41]} 35. g5 {[%emt 0:01:56]} Rd8 {[%emt 0:00:18]} 36. Qf4 {[%emt 0:01:32]} Rd7 {[%emt 0:01:27]} 37. h4 {[%emt 0:00:34]} Rd8 {[%emt 0:00:31]} 38. h5 {[%emt 0:01:14]} Rd7 {[%emt 0:00:14]} 39. hxg6 {[%emt 0:01:15]} hxg6 {[%emt 0:00:14]} 40. Kg2 {[%emt 0:03:36]} Rd5 {[%emt 0:01:19]} 41. Qg4 {[%emt 0:02:10]} Qe8 {[%emt 0:00:42]} 42. Rf3 {[%emt 0:00:48]} Kf8 {[%emt 0:00:38]} 43. Rh3 {[%emt 0:00:48]} Ke7 {[%emt 0:00:09]} 44. Qf4 {[%emt 0:00:43]} Kd7 {[%emt 0:00:39]} 45. Rh7 {[%emt 0:00:10]} Kc6 {[%emt 0:00:43]} 46. Rxf7 {[%emt 0:02:23]} Rd7 {[%emt 0:00:10]} 47. Rf6 {[%emt 0:02:06]} Kc7 {[%emt 0:00:34]} 48. Qe4 {[%emt 0:01:13]} Rg7 {[%emt 0:00:25]} 49. d5 {[%emt 0:01:30]} exd5 {[%emt 0:00:23]} 50. Qxd5 {[%emt 0:00:12]} Rd7 {[%emt 0:00:33]} 51. Qc5+ {[%emt 0:00:25]} Kb8 {[%emt 0:00:27]} 52. Rf8 {[%emt 0:00:11]} Rd2+ {[%emt 0:00:08]} 53. Kf1 {[%emt 0:00:27]} Rd1+ {[%emt 0:00:11]} 54. Ke2 {[%emt 0:00:04]} 1-0

[Event "HUN-chT Youth-Children 2018"]
[Site "Zalakaros"]
[Date "2018.07.28"]
[Round "5"]
[White "Kiss, Eniko"]
[Black "Koltai, Dora"]
[Result "0-1"]
[ECO "C42"]
[WhiteElo "1697"]
[BlackElo "1786"]
[Annotator "NA RC"]
[PlyCount "58"]
[EventDate "2018.07.26"]
[EventType "team-tourn"]
[EventCountry "HUN"]
[SourceTitle "playchess.com"]
[Source "ChessBase"]
[SourceQuality "1"]
[TimeControl "5400+30"]

1. e4 e5 {[%emt 0:00:00]} 2. Nf3 Nf6 3. Nc3 {[%emt 0:14:13]} Bb4 {[%emt 0:00:48]} 4. Nxe5 {[%emt 0:00:18]} O-O 5. Be2 {[%emt 0:09:32]} d6 {[%emt 0:11:04]} 6. Nf3 {[%emt 0:05:28]} Bxc3 {[%emt 0:00:54]} 7. dxc3 {[%emt 0:00:16]} Nxe4 {[%emt 0:00:42]} 8. O-O {[%emt 0:15:26]} h6 9. Re1 {[%emt 0:00:30]} Nc6 {[%emt 0:11:43]} 10. Be3 {[%emt 0:17:19]} Re8 11. Bd3 {[%emt 0:06:57]} Nf6 {[%emt 0:14:30]} 12. h3 {[%emt 0:00:30]} Ne5 {[%emt 0:15:57]} 13. Be2 {[%emt 0:07:45]} Bf5 {[%emt 0:00:30]} 14. Bf4 {[%emt 0:06:54]} Qd7 {[%emt 0:04:37]} 15. Nd4 {[%emt 0:03:08]} Bg6 {[%emt 0:02:59]} 16. Bf1 {[%emt 0:00:30]} Rad8 {[%emt 0:03:52]} 17. Nf3 {[%emt 0:03:22]} Nxf3+ 18. Qxf3 Be4 {[%emt 0:03:03]} 19. Qd1 {[%emt 0:01:13]} Qf5 {[%emt 0:01:23]} 20. Be3 {[%emt 0:01:37]} Bxc2 {[%emt 0:01:07]} 21. Qd2 {[%emt 0:01:06]} Qg6 {[%emt 0:04:22]} 22. Bd4 {[%emt 0:02:01]} Bf5 {[%emt 0:02:44]} 23. Kh2 {[%emt 0:01:28]} Ne4 {[%emt 0:03:45]} 24. Qf4 {[%emt 0:01:00]} c5 {[%emt 0:06:56]} 25. g4 {[%emt 0:01:15]} Bxg4 {[%emt 0:10:47]} 26. hxg4 {[%emt 0:00:30]} cxd4 {[%emt 0:00:30]} 27. Bd3 {[%emt 0:00:30]} f5 {[%emt 0:00:30]} 28. gxf5 {[%emt 0:00:30]} Qh5+ {[%emt 0:00:30]} 29. Kg1 {[%emt 0:00:30]} Ng5 0-1

[Event "HUN-chT Youth-Children 2018"]
[Site "Zalakaros"]
[Date "2018.07.28"]
[Round "5"]
[White "Juhasz, Balazs"]
[Black "Kratzmajer, Akos Gyorgy"]
[Result "0-1"]
[ECO "A01"]
[WhiteElo "1687"]
[BlackElo "1972"]
[Annotator "NA RC"]
[PlyCount "62"]
[EventDate "2018.07.26"]
[EventType "team-tourn"]
[EventCountry "HUN"]
[SourceTitle "playchess.com"]
[Source "ChessBase"]
[SourceQuality "1"]
[TimeControl "5400+30"]

{[%evp 8,46,12,8,32767,13,27,8,32,22,52,43,76,27,25,0,33,18,183,158,177,22,218,245,454,495,451,473,483,318,320,292,293,280,342,320,290,272,32767,114,108]} 1. b3 {[%emt 0:00:00]} Nf6 {[%emt 0:06:40]} 2. Nf3 {[%emt 0:00:00]} g6 {[%emt 0:00:09]} 3. Bb2 {[%emt 0:00:00]} Bg7 {[%emt 0:00:07]} 4. e3 {[%emt 0:00:08]} O-O {[%emt 0:00:16]} 5. d4 {[%emt 0:00:13]} d6 {[%emt 0:00:19]} 6. Be2 {[%emt 0:01:11]} Nbd7 {[%emt 0:00:42] LiveBook: 75 Games} 7. O-O {[%emt 0:01:12]} a5 {[%emt 0:01:34] A48: 1 d4 Nf6 2 Nf3 g6: Torre, London and Colle Systems} (7... e6 8. c4 Qe7 9. Nc3 Re8 10. Nb5 Nf8 11. c5 a6 12. cxd6 cxd6 13. Nc3 b5 14. Nd2 Bb7 15. a4 bxa4 16. Nxa4 {1-0 (25) Nakamura,H (2786)-Grigoriants,S (2576) chess.com INT 2017}) 8. c4 {[%emt 0:03:09]} h5 $146 {[%emt 0:01:16]} ({Predecessor:} 8... b6 9. Nbd2 Bb7 10. Qc2 e6 11. Rac1 Rc8 12. Qb1 c5 13. Rfe1 Ne8 14. Rcd1 {½-½ (32) Luebbers,D (1527)-Linz,S (1695) Buesum 2015}) 9. Nc3 {[%emt 0:05:18]} Nh7 {[%emt 0:00:25]} 10. h4 {[%emt 0:08:14]} e5 {[%emt 0:00:30]} 11. dxe5 {[%emt 0:02:14]} dxe5 {[%emt 0:00:16]} 12. e4 {[%emt 0:00:29]} f5 $2 {[%emt 0:11:21]} (12... Re8 $11) 13. exf5 {[%emt 0:10:53]} gxf5 {[%emt 0:00:16] [#]} 14. g3 $2 {[%emt 0:05:51]} (14. Nb5 $1 $18) 14... Qe8 $2 {[%emt 0:03:31]} (14... e4 $11) 15. Nb5 {[%emt 0:08:26]} c6 $2 {[%emt 0:21:08]} (15... Qd8 {war einen Versuch wert.} 16. Qd5+ Kh8) 16. Nc7 $1 {[%emt 0:03:23]} Qg6 {[%emt 0:00:15]} 17. Nxa8 {[%emt 0:01:00]} f4 {[%emt 0:01:14]} 18. Kh2 {[%emt 0:07:24]} e4 {[%emt 0:05:07]} 19. Bxg7 {[%emt 0:04:11]} Qxg7 {[%emt 0:00:28]} 20. Qd4 {[%emt 0:08:49]} Ndf6 {[%emt 0:03:52]} 21. Ne5 {[%emt 0:08:25]} f3 {[%emt 0:00:51]} 22. Bxf3 $1 {[%emt 0:08:59]} exf3 {[%emt 0:00:27]} 23. Rad1 $2 {[%emt 0:02:30]} (23. Rfe1 $18) 23... c5 $16 {[%emt 0:04:01]} 24. Qxc5 Ng4+ {[%emt 0:00:23]} 25. Kg1 {[%emt 0:06:07]} Nxe5 {[%emt 0:00:23]} 26. Nb6 {[%emt 0:01:53]} Qg4 {[%emt 0:12:22]} 27. Nxc8 {[%emt 0:02:20]} Qh3 {[%emt 0:01:20]} 28. Qd5+ {[%emt 0:00:54]} Kh8 {[%emt 0:00:25]} 29. Qxe5+ {[%emt 0:00:11]} Nf6 {[%emt 0:00:07]} 30. Qxf6+ {[%emt 0:00:58]} Rxf6 {[%emt 0:00:05]} 31. Rd8+ {[%emt 0:00:07]} Kg7 {[%emt 0:00:11]} 0-1

[Event "HUN-chT Youth-Children 2018"]
[Site "Zalakaros"]
[Date "2018.07.28"]
[Round "5"]
[White "Balogh, Judit Dora"]
[Black "Gombocz, Zsofia"]
[Result "1/2-1/2"]
[ECO "D00"]
[WhiteElo "1674"]
[BlackElo "1996"]
[Annotator "NA RC"]
[PlyCount "89"]
[EventDate "2018.07.26"]
[EventType "team-tourn"]
[EventCountry "HUN"]
[SourceTitle "playchess.com"]
[Source "ChessBase"]
[SourceQuality "1"]
[TimeControl "5400+30"]

{[%evp 8,70,20,6,2,-10,9,-33,-6,-35,-18,-25,-24,-78,-35,-56,-42,-63,-55,-87,-76,-73,-61,-101,-36,-53,-25,32767,-27,-97,-19,-35,-13,-14,-14,32767,0,-6,218,33,32767,56,32767,32767,32767,32767,32767,32767,32767,32767,32767,32767,87,32767,141,32767,20,0,24,40,50,25,38,39,62]} 1. d4 {[%emt 0:00:00]} d5 {[%emt 0:00:09]} 2. g3 {[%emt 0:00:57]} Nf6 {[%emt 0:01:22]} 3. Bg2 {[%emt 0:01:36]} e6 {[%emt 0:03:29]} 4. Nf3 {[%emt 0:01:38]} Be7 {[%emt 0:00:44]} 5. O-O {[%emt 0:00:48]} O-O {[%emt 0:00:19]} 6. Bf4 {[%emt 0:03:57] D02: 1 d4 d5 2 Nf3 sidelines, including 2...Nf6 3 g3 and 2...Nf6 3 Bf4} (6. c4 $5 dxc4 7. Ne5 Nc6 8. Bxc6 bxc6 9. Nxc6 Qe8 10. Nxe7+ Qxe7 11. Qa4 e5 12. dxe5 Qxe5 13. Qxc4 Be6 14. Qc2 Bf5 15. Qd2 Bh3 16. Re1 Rad8 17. Qc3 Qd5 18. f3 Rfe8 19. Na3 Qb7 20. Nc2 Qa6 21. Be3 {½-½ (59) Meier,G (2628)-Dominguez Perez,L (2739) chess.com INT 2018}) 6... c5 {[%emt 0:01:32]} 7. c3 {[%emt 0:03:34]} Nc6 {[%emt 0:03:42] LiveBook: 6 Games} 8. Ne5 {[%emt 0:06:37]} cxd4 {[%emt 0:02:41]} 9. Nxc6 {[%emt 0:03:58]} bxc6 {[%emt 0:00:11]} 10. Qxd4 $146 {[%emt 0:01:33]} ({Predecessor:} 10. cxd4 Qb6 11. Qd2 c5 12. dxc5 Bxc5 13. Nc3 Bd7 14. a3 Rac8 {½-½ (36) Znamensky,V (2369)-Vunder,Y (2242) St Petersburg 2007}) 10... c5 {[%emt 0:03:33]} 11. Qd3 {[%emt 0:02:29]} Qb6 {[%emt 0:02:18]} 12. b3 {[%emt 0:01:56]} Ba6 {[%emt 0:01:52]} 13. Qc2 {[%emt 0:04:22]} Rad8 {[%emt 0:10:16]} 14. Re1 {[%emt 0:02:12]} Rfe8 {[%emt 0:05:51]} 15. a4 {[%emt 0:03:40] [#]} Bd6 {[%emt 0:16:46]} ({Besser ist} 15... e5 $1 $17 {[%mdl 512]} 16. a5 (16. Bxe5 $2 Ng4 $19) 16... Qe6) 16. Bxd6 {[%emt 0:01:39]} Rxd6 {[%emt 0:00:17]} 17. Nd2 {[%emt 0:02:05]} e5 {[%emt 0:08:00]} 18. Bf1 {[%emt 0:01:59]} (18. e4 $11 {remains equal.}) 18... d4 {[%emt 0:09:03]} (18... e4 $17 19. a5 Qb7) 19. cxd4 {[%emt 0:03:15]} cxd4 {[%emt 0:03:00]} 20. Rac1 {[%emt 0:10:30]} Rdd8 {[%emt 0:06:44]} 21. Nc4 {[%emt 0:05:26]} Qc6 {[%emt 0:04:00]} 22. Na5 {[%emt 0:03:42]} Qd5 $2 {[%emt 0:03:38] [#]} (22... Qb6 $11 {and Black has nothing to worry.} 23. Nc6 Rd6) 23. Qc5 $2 {[%emt 0:00:31]} (23. Nc6 $1 $18) 23... e4 {[%emt 0:06:01]} 24. b4 {[%emt 0:03:19]} Qxc5 {[%emt 0:01:17]} 25. Rxc5 {[%emt 0:02:05]} d3 {[%emt 0:01:59]} 26. exd3 {[%emt 0:00:40]} Bxd3 {[%emt 0:00:33]} 27. Nc6 {[%emt 0:01:53]} Rd7 $1 {[%emt 0:00:34]} 28. Ne5 {[%emt 0:02:06]} Rd4 $1 $11 {[%emt 0:00:15]} 29. Nc6 {[%emt 0:01:15]} Rd7 {[%emt 0:01:35]} 30. Ne5 {[%emt 0:00:12]} Rd6 {[%emt 0:00:39]} 31. f3 {[%emt 0:11:00]} Bxf1 $1 {[%emt 0:01:49]} 32. Kxf1 {[%emt 0:00:18]} exf3 {[%emt 0:01:24]} 33. Nxf3 {[%emt 0:00:33]} Kf8 {[%emt 0:00:47]} 34. Rxe8+ {[%emt 0:01:05]} Nxe8 {[%emt 0:00:25]} 35. Ke2 {[%emt 0:02:06]} f6 $14 {[%emt 0:00:38]} 36. b5 {[%emt 0:02:01]} Ke7 {[%emt 0:00:30]} 37. Rc4 {[%emt 0:01:12]} Kd7 {[%emt 0:00:35]} 38. Nd4 {[%emt 0:00:46]} Nc7 {[%emt 0:00:27]} 39. Nc6 {[%emt 0:01:52]} a6 {[%emt 0:00:12]} 40. Nb8+ {[%emt 0:00:24]} Kd8 {[%emt 0:00:12]} 41. Nc6+ {[%emt 0:01:18]} Kd7 {[%emt 0:00:23]} 42. Nb8+ {[%emt 0:00:53]} Kd8 {[%emt 0:00:10]} 43. Nc6+ {[%emt 0:02:21]} Kd7 {[%emt 0:00:55]} 44. Nb8+ {[%emt 0:02:54]} Kd8 {[%emt 0:00:09]} 45. Nc6+ {[%emt 0:00:49]} 1/2-1/2

[Event "HUN-chT Youth-Children 2018"]
[Site "Zalakaros"]
[Date "2018.07.28"]
[Round "5"]
[White "Szalay-Ocsak, Bank"]
[Black "Vilics, Hanna"]
[Result "1-0"]
[ECO "B77"]
[WhiteElo "1639"]
[BlackElo "1205"]
[Annotator "NA RC"]
[PlyCount "95"]
[EventDate "2018.07.26"]
[EventType "team-tourn"]
[EventCountry "HUN"]
[SourceTitle "playchess.com"]
[Source "ChessBase"]
[SourceQuality "1"]
[TimeControl "5400+30"]

1. e4 {[%emt 0:00:00]} c5 {[%emt 0:00:14]} 2. Nf3 {[%emt 0:00:00]} d6 {[%emt 0:00:16]} 3. d4 {[%emt 0:00:08]} cxd4 {[%emt 0:00:12]} 4. Nxd4 {[%emt 0:00:09]} Nf6 {[%emt 0:00:16]} 5. Nc3 {[%emt 0:00:25]} g6 {[%emt 0:00:15]} 6. Be3 {[%emt 0:03:59]} Bg7 {[%emt 0:00:54]} 7. Bc4 {[%emt 0:01:49]} O-O {[%emt 0:00:59]} 8. f3 {[%emt 0:00:42]} Nc6 {[%emt 0:00:55]} 9. Qd2 {[%emt 0:00:47]} Nxd4 {[%emt 0:01:57]} 10. Bxd4 {[%emt 0:01:09]} a6 {[%emt 0:03:09]} 11. O-O-O {[%emt 0:02:43]} b5 {[%emt 0:06:53]} 12. Bb3 {[%emt 0:01:50]} b4 {[%emt 0:00:55]} 13. Nd5 {[%emt 0:04:34]} Nxd5 {[%emt 0:05:07]} 14. Bxg7 {[%emt 0:02:21]} Kxg7 {[%emt 0:00:16]} 15. Bxd5 {[%emt 0:00:26]} Rb8 {[%emt 0:00:40]} 16. g4 {[%emt 0:01:57]} a5 {[%emt 0:00:53]} 17. h4 {[%emt 0:00:35]} Be6 {[%emt 0:03:20]} 18. h5 {[%emt 0:02:21]} Bxd5 {[%emt 0:09:30]} 19. exd5 {[%emt 0:06:55]} Rh8 {[%emt 0:07:29]} 20. Qd4+ {[%emt 0:05:56]} f6 {[%emt 0:02:08]} 21. Rdg1 {[%emt 0:05:42]} Qb6 {[%emt 0:01:42]} 22. Qe4 {[%emt 0:02:16]} Qc7 {[%emt 0:00:42]} 23. g5 {[%emt 0:00:56]} Rbe8 {[%emt 0:03:34]} 24. hxg6 {[%emt 0:01:27]} f5 {[%emt 0:08:18]} 25. Qe6 {[%emt 0:04:33]} hxg6 {[%emt 0:01:25]} 26. Qe3 {[%emt 0:02:51]} Qc5 {[%emt 0:01:19]} 27. Qd2 {[%emt 0:05:34]} a4 {[%emt 0:01:57]} 28. Re1 {[%emt 0:02:23]} Rxh1 {[%emt 0:03:51]} 29. Rxh1 {[%emt 0:00:29]} Rh8 {[%emt 0:00:59]} 30. Re1 {[%emt 0:01:59]} Re8 {[%emt 0:00:21]} 31. Rd1 {[%emt 0:03:20]} Rc8 {[%emt 0:05:47]} 32. Qd4+ {[%emt 0:03:17]} Qxd4 {[%emt 0:00:14]} 33. Rxd4 {[%emt 0:00:07]} b3 {[%emt 0:00:19]} 34. axb3 {[%emt 0:02:16]} axb3 {[%emt 0:00:26]} 35. c4 {[%emt 0:01:33]} Kf7 {[%emt 0:01:04]} 36. Kd2 {[%emt 0:00:45]} e6 {[%emt 0:00:29]} 37. dxe6+ {[%emt 0:00:43]} Kxe6 {[%emt 0:00:17]} 38. Kc3 {[%emt 0:00:08]} Rb8 {[%emt 0:00:26]} 39. Rd5 {[%emt 0:01:43]} Rb7 40. Rb5 Rxb5 {[%emt 0:01:56]} 41. cxb5 {[%emt 0:01:14]} Kd5 {[%emt 0:00:24]} 42. b6 {[%emt 0:04:34]} Kc6 {[%emt 0:00:09]} 43. Kxb3 {[%emt 0:00:07]} Kxb6 {[%emt 0:00:09]} 44. Kc4 {[%emt 0:00:11]} Kc6 {[%emt 0:00:06]} 45. f4 {[%emt 0:00:53]} d5+ {[%emt 0:00:20]} 46. Kd4 {[%emt 0:00:05]} Kd6 {[%emt 0:00:08]} 47. b4 {[%emt 0:00:25]} Kc6 {[%emt 0:00:28]} 48. b5+ {[%emt 0:01:09]} 1-0

[Event "HUN-chT Youth-Children 2018"]
[Site "Zalakaros"]
[Date "2018.07.28"]
[Round "5"]
[White "Markus, Molli Amina"]
[Black "Toth, Csongor"]
[Result "1/2-1/2"]
[ECO "E09"]
[WhiteElo "1566"]
[BlackElo "1326"]
[Annotator "NA RC"]
[PlyCount "81"]
[EventDate "2018.07.26"]
[EventType "team-tourn"]
[EventCountry "HUN"]
[SourceTitle "playchess.com"]
[Source "ChessBase"]
[SourceQuality "1"]
[TimeControl "5400+30"]

1. d4 {[%emt 0:00:00]} d5 {[%emt 0:00:03]} 2. Nf3 {[%emt 0:00:07]} e6 {[%emt 0:00:12]} 3. g3 {[%emt 0:00:43]} Nf6 {[%emt 0:00:26]} 4. Bg2 {[%emt 0:01:10]} Be7 {[%emt 0:00:28]} 5. O-O {[%emt 0:00:46]} O-O {[%emt 0:00:12]} 6. c4 {[%emt 0:01:41]} c6 {[%emt 0:06:36]} 7. Qc2 {[%emt 0:01:49]} Nbd7 {[%emt 0:16:44]} 8. Nbd2 {[%emt 0:02:25]} b6 {[%emt 0:00:54]} 9. b3 {[%emt 0:01:48]} Bb7 {[%emt 0:01:03]} 10. Bb2 {[%emt 0:00:46]} c5 {[%emt 0:02:41]} 11. Rac1 {[%emt 0:03:12]} Rc8 {[%emt 0:00:24]} 12. Qb1 {[%emt 0:00:21]} cxd4 {[%emt 0:04:29]} 13. Bxd4 {[%emt 0:03:49]} Ba3 {[%emt 0:02:43]} 14. Bb2 {[%emt 0:02:33]} Bxb2 {[%emt 0:02:31]} 15. Qxb2 {[%emt 0:00:11]} Qe7 {[%emt 0:01:19]} 16. Rfd1 {[%emt 0:03:41]} Rfd8 {[%emt 0:04:39]} 17. cxd5 {[%emt 0:01:55]} Bxd5 {[%emt 0:02:46]} 18. Qb1 {[%emt 0:03:16]} Nf8 {[%emt 0:09:45]} 19. Ne1 {[%emt 0:02:56]} Bxg2 {[%emt 0:01:53]} 20. Nxg2 {[%emt 0:00:23]} Ng6 {[%emt 0:00:13]} 21. Nc4 {[%emt 0:02:19]} Rxd1+ {[%emt 0:08:33]} 22. Rxd1 {[%emt 0:00:11]} Rd8 {[%emt 0:00:07]} 23. Nge3 {[%emt 0:04:20]} Rxd1+ {[%emt 0:09:36]} 24. Qxd1 {[%emt 0:00:19]} Qd7 {[%emt 0:00:47]} 25. Qc2 {[%emt 0:04:15]} h6 {[%emt 0:12:12]} 26. b4 {[%emt 0:10:08]} Nd5 {[%emt 0:03:58]} 27. a3 {[%emt 0:03:06]} Nxe3 {[%emt 0:01:30]} 28. Nxe3 {[%emt 0:00:15]} Ne7 29. Ng4 {[%emt 0:07:55]} Qc6 {[%emt 0:04:00]} 30. Qd2 {[%emt 0:01:08]} Qd5 {[%emt 0:00:56]} 31. Qc1 {[%emt 0:01:35]} Qc6 {[%emt 0:00:25]} 32. Qb2 {[%emt 0:01:22]} Ng6 {[%emt 0:00:56]} 33. Qd2 {[%emt 0:00:44]} Qc7 {[%emt 0:00:11]} 34. Qb2 {[%emt 0:01:51]} Qc6 {[%emt 0:00:58]} 35. Ne5 {[%emt 0:02:16]} Nxe5 {[%emt 0:00:17]} 36. Qxe5 {[%emt 0:00:11]} Qc1+ {[%emt 0:00:15]} 37. Kg2 {[%emt 0:00:08]} Qxa3 {[%emt 0:00:15]} 38. Qb8+ {[%emt 0:01:05]} Kh7 {[%emt 0:00:04]} 39. Qf4 {[%emt 0:00:50]} Kg8 {[%emt 0:00:45]} 40. Qb8+ {[%emt 0:00:31]} Kh7 {[%emt 0:00:03]} 41. Qf4 1/2-1/2

[Event "HUN-chT Youth-Children 2018"]
[Site "Zalakaros"]
[Date "2018.07.28"]
[Round "5"]
[White "Bodo, Boglarka"]
[Black "Kocsmar, Akos"]
[Result "1-0"]
[ECO "B52"]
[WhiteElo "1471"]
[BlackElo "1721"]
[Annotator "NA RC"]
[PlyCount "71"]
[EventDate "2018.07.26"]
[EventType "team-tourn"]
[EventCountry "HUN"]
[SourceTitle "playchess.com"]
[Source "ChessBase"]
[SourceQuality "1"]
[TimeControl "5400+30"]

1. e4 {[%emt 0:00:00]} c5 {[%emt 0:00:28]} 2. Nf3 {[%emt 0:00:00]} d6 {[%emt 0:00:24]} 3. Bb5+ {[%emt 0:00:07]} Bd7 {[%emt 0:00:31]} 4. Bxd7+ {[%emt 0:00:26]} Nxd7 {[%emt 0:00:19]} 5. O-O {[%emt 0:00:56]} g6 {[%emt 0:00:42]} 6. c3 {[%emt 0:01:47]} Bg7 {[%emt 0:01:22]} 7. d4 {[%emt 0:01:23]} Qb6 {[%emt 0:00:32]} 8. Na3 {[%emt 0:02:11]} Ngf6 {[%emt 0:00:52]} 9. Re1 {[%emt 0:03:06]} Rd8 {[%emt 0:01:25]} 10. Nc4 {[%emt 0:03:29]} Qc7 {[%emt 0:01:56]} 11. b3 {[%emt 0:02:25]} O-O {[%emt 0:01:28]} 12. Qc2 {[%emt 0:00:48]} Rc8 {[%emt 0:08:28]} 13. Bf4 {[%emt 0:02:43]} cxd4 {[%emt 0:00:21]} 14. Nxd4 {[%emt 0:01:52]} a6 {[%emt 0:09:53]} 15. Bd2 {[%emt 0:00:16]} Ne8 {[%emt 0:02:37]} 16. Bg5 {[%emt 0:12:58]} Nef6 {[%emt 0:00:36]} 17. Rac1 {[%emt 0:02:07]} b5 {[%emt 0:01:08]} 18. Ne3 {[%emt 0:01:09]} Nc5 {[%emt 0:01:02]} 19. Nd5 {[%emt 0:08:38]} Qd8 {[%emt 0:02:18]} 20. Nxf6+ {[%emt 0:04:48]} Bxf6 {[%emt 0:00:06]} 21. Bxf6 {[%emt 0:00:53]} exf6 {[%emt 0:00:03]} 22. Re3 {[%emt 0:05:44]} Re8 {[%emt 0:05:10]} 23. Qe2 {[%emt 0:04:39]} Qb6 {[%emt 0:00:47]} 24. Qg4 {[%emt 0:03:26]} Ne6 {[%emt 0:02:18]} 25. Nf5 {[%emt 0:04:23]} Kf8 {[%emt 0:00:29]} 26. Nh6 {[%emt 0:14:42]} Qa5 {[%emt 0:05:43]} 27. Qh4 {[%emt 0:03:12]} Ng5 {[%emt 0:03:23]} 28. Qf4 {[%emt 0:00:42]} Ke7 {[%emt 0:02:57]} 29. Ng4 {[%emt 0:00:51]} b4 {[%emt 0:02:02]} 30. Rd1 {[%emt 0:01:57]} Qc5 {[%emt 0:01:23]} 31. cxb4 {[%emt 0:01:50]} Qd4 {[%emt 0:00:51]} 32. Red3 {[%emt 0:01:28]} Ne6 {[%emt 0:00:07]} 33. Qf3 {[%emt 0:02:21]} Qxb4 {[%emt 0:00:51]} 34. Qxf6+ {[%emt 0:01:01]} Kd7 35. Ne5+ {[%emt 0:03:27]} Kc7 {[%emt 0:00:10]} 36. Qxf7+ {[%emt 0:01:17]} 1-0

[Event "HUN-chT Youth-Children 2018"]
[Site "Zalakaros"]
[Date "2018.07.28"]
[Round "5"]
[White "Lazsadi, Kerka Lilla"]
[Black "Pasti, Zsombor"]
[Result "1-0"]
[ECO "C70"]
[WhiteElo "1399"]
[BlackElo "1249"]
[Annotator "NA RC"]
[PlyCount "82"]
[EventDate "2018.07.26"]
[EventType "team-tourn"]
[EventCountry "HUN"]
[SourceTitle "playchess.com"]
[Source "ChessBase"]
[SourceQuality "1"]
[TimeControl "5400+30"]

1. e4 {[%emt 0:00:00]} e5 {[%emt 0:00:04]} 2. Nf3 {[%emt 0:00:00]} Nc6 {[%emt 0:00:09]} 3. Bb5 {[%emt 0:00:00]} a6 {[%emt 0:00:05]} 4. Ba4 {[%emt 0:00:23]} Bc5 {[%emt 0:00:19]} 5. Nc3 {[%emt 0:00:58]} Nf6 {[%emt 0:00:16]} 6. d3 {[%emt 0:00:44]} d6 {[%emt 0:00:06]} 7. Be3 {[%emt 0:00:50]} Bb4 {[%emt 0:00:20]} 8. Bxc6+ {[%emt 0:01:02]} bxc6 {[%emt 0:00:07]} 9. Qd2 {[%emt 0:00:41]} d5 {[%emt 0:00:33]} 10. Nxe5 {[%emt 0:00:40]} d4 {[%emt 0:00:06]} 11. Nxc6 {[%emt 0:00:51]} dxc3 {[%emt 0:01:05]} 12. bxc3 {[%emt 0:00:24]} Qd6 {[%emt 0:20:07]} 13. Nxb4 {[%emt 0:01:05]} a5 {[%emt 0:03:51]} 14. Nd5 {[%emt 0:01:26]} Nxd5 {[%emt 0:02:28]} 15. exd5 {[%emt 0:00:34]} Qxd5 {[%emt 0:01:07]} 16. Qe2 {[%emt 0:00:42]} Qxg2 {[%emt 0:04:07]} 17. Bc5+ {[%emt 0:01:27]} Be6 {[%emt 0:00:10]} 18. Qe4 {[%emt 0:00:31]} Qxe4+ {[%emt 0:00:30]} 19. dxe4 {[%emt 0:00:15]} O-O-O {[%emt 0:00:55]} 20. Bd4 {[%emt 0:01:38]} Rhg8 {[%emt 0:03:37]} 21. e5 {[%emt 0:07:48]} Rde8 {[%emt 0:00:12]} 22. Kd2 {[%emt 0:07:16]} Rd8 {[%emt 0:02:52]} 23. Ke3 {[%emt 0:03:26]} Rde8 {[%emt 0:00:16]} 24. f4 {[%emt 0:02:30]} Bd5 {[%emt 0:00:20]} 25. Rhd1 {[%emt 0:00:45]} Bb7 {[%emt 0:01:15]} 26. Kf2 {[%emt 0:01:38]} f6 {[%emt 0:02:43]} 27. Rg1 {[%emt 0:02:54]} fxe5 {[%emt 0:00:41]} 28. Bxe5 {[%emt 0:00:55]} g5 {[%emt 0:03:43]} 29. Rae1 {[%emt 0:01:42]} Rgf8 {[%emt 0:03:16]} 30. Rxg5 {[%emt 0:04:45]} Rg8 {[%emt 0:07:58]} 31. Rh5 {[%emt 0:01:58]} Rg2+ {[%emt 0:01:21]} 32. Kf1 {[%emt 0:01:11]} Reg8 {[%emt 0:00:21]} 33. c4 {[%emt 0:01:29]} Rg1+ {[%emt 0:00:41]} 34. Ke2 {[%emt 0:04:21]} R8g2+ {[%emt 0:01:04]} 35. Kd3 {[%emt 0:00:41]} Rxe1 {[%emt 0:00:44]} 36. Rxh7 {[%emt 0:00:51]} Be4+ {[%emt 0:01:37]} 37. Kd4 {[%emt 0:00:28]} Bxh7 {[%emt 0:01:04]} 38. Kc5 {[%emt 0:00:38]} Rxc2 {[%emt 0:00:26]} 39. Kb5 {[%emt 0:00:30]} Rxa2 {[%emt 0:00:11]} 40. Bc3 {[%emt 0:00:33]} Rf1 {[%emt 0:00:31]} 41. Be5 {[%emt 0:00:29]} a4 {[%emt 0:00:40]} 1-0